Workbook

Sheet Costing (hidden)
A1: ITEM DESCRIPTION | B1: Gross Selling Price | C1: Net Selling Price | D1: Gross Price After 10% Discount | E1: Food Cost | F1: After 10% Discount | G1: REMARKS
A2: SIGNATURE PASTAS
A3: PENNE PINK PASTA | B3: 41 | C3: =B3/1.05 -> 39.04761905 | D3: =+B3*90% -> 36.9 | E3: 6.82279 | F3: =+E3*1.05/(C3*90%) -> 0.2038516524 | H3: =5.5*K3 -> 0
A4: PENNE ARRABIATTA | B4: 39 | C4: 37.14285714 | D4: 35.1 | E4: 4.4524 | F4: 0.1398510256 | H4: 0
A5: CHICKEN FETTUCCINI ALFREDO | B5: 51 | C5: 48.57142857 | D5: 45.9 | E5: 9.906 | F5: 0.2379382353 | H5: 0
A6: CHICKEN PENNE ALFREDO | B6: 47 | C6: 44.76190476 | D6: 42.3 | E6: 9.13924 | F6: 0.2382035957 | H6: 0
A7: TRUFFLE MUSHROOM FETTUCCINI | B7: 56 | C7: 53.33333333 | D7: 50.4 | E7: 9.17613 | F7: 0.2007278437 | H7: 0
A8: SPAGHETTI BOLOGNESE | B8: 47 | C8: 44.76190476 | D8: 42.3 | E8: 6.92851 | F8: 0.1805835053 | H8: 0
A9: LINGUINE FRUTTI DI MARE | B9: 49 | C9: 46.66666667 | D9: 44.1 | E9: 7.56052 | F9: 0.189013 | H9: 0
A10: LASAGNA BOLOGNESE | B10: 49 | C10: 46.66666667 | D10: 44.1 | E10: 6.2813 | F10: 0.1570325 | H10: 0
A11: SPAGHETTI PESTO A LA GENOVESE | B11: 59 | C11: 56.19047619 | D11: 53.1 | E11: 11.47932 | F11: 0.2383418136 | H11: 0
A12: RIGATONI AMTRICIANA | B12: 46 | C12: 43.80952381 | D12: 41.4 | E12: 7.10783 | F12: 0.1892846033 | H12: 0
A13: SPAGHETTI PUTTANESCA | B13: 41 | C13: 39.04761905 | D13: 36.9 | E13: 5.86746 | F13: 0.1753082561 | H13: 0
A15: SALADS
A16: CHICKEN CAESAR SALAD | B16: 46 | C16: =B16/1.05 -> 43.80952381 | D16: =+B16*90% -> 41.4 | E16: 7.8608 | F16: =+E16*1.05/(C16*90%) -> 0.2093365217
A17: SICILIAN SALAD | B17: =5.5*E17 -> 30.635 | C17: 29.17619048 | D17: 27.5715 | E17: 5.57 | F17: 0.2227272727
A18: FUSILLI PASTA SALAD | B18: 29.9596 | C18: 28.53295238 | D18: 26.96364 | E18: 5.4472 | F18: 0.2227272727
A19: CHICKEN PENNE SALAD | B19: 46.3089 | C19: 44.10371429 | D19: 41.67801 | E19: 8.4198 | F19: 0.2227272727
A20: CAPRESE SALAD | B20: 43.68276 | C20: 41.60262857 | D20: 39.314484 | E20: 7.94232 | F20: 0.2227272727
A22: SIDES
A23: CHICKEN STRIPS | B23: =5.5*E23 -> 31.31293 | C23: =B23/1.05 -> 29.8218381 | D23: =+B23*90% -> 28.181637 | E23: 5.69326 | F23: =+E23*1.05/(C23*90%) -> 0.2227272727
A24: CHICKEN WINGS 4 pcs | B24: 27 | C24: 25.71428571 | D24: 24.3 | E24: =(6.8537/6)*4 -> 4.569133333 | F24: 0.2073032716
A25: CHICKEN WINGS 4pcs | B25: 27 | C25: 25.71428571 | D25: 24.3 | E25: =(7.8593/6)*4 -> 5.239533333 | F25: 0.2377195679
A26: SWEET POTATO FRIES | B26: =5.5*E26 -> 21.612415 | C26: 20.58325238 | D26: 19.4511735 | E26: 3.92953 | F26: 0.2227272727
A27: MOZZARELLA STICKS | B27: 31.43866 | C27: 29.94158095 | D27: 28.294794 | E27: 5.71612 | F27: 0.2227272727
A28: TRUFFLE FRIES | B28: 25.1713 | C28: 23.97266667 | D28: 22.65417 | E28: 4.5766 | F28: 0.2227272727
A29: Sicilian Meat Balls | B29: 29 | C29: 27.61904762 | D29: 26.1 | E29: 4.71142 | F29: 0.1990168793
A30: FOUR CHEESE ARANCINI | B30: 29 | C30: 27.61904762 | D30: 26.1 | E30: 5.29591 | F30: 0.2237065431
A31: MUSHROOM & SAFFRON ARANCINI | B31: 31 | C31: 29.52380952 | D31: 27.9 | E31: 5.12566 | F31: 0.2025462419
A32: HOMEMADE GARLIC BREAD & MOZZARELLA (1 pc) | B32: 6 | C32: 5.714285714 | D32: 5.4 | E32: 0.88408 | F32: 0.1804996667
A34: GNOCCHI
A35: GNOCCHI WHITE SAUCE WITH TRUFFLE | B35: 45 | C35: =B35/1.05 -> 42.85714286 | D35: =+B35*90% -> 40.5 | E35: 8.27461 | F35: =+E35*1.05/(C35*90%) -> 0.2252532722
A36: GNOCCHI POMODORO | B36: 39 | C36: 37.14285714 | D36: 35.1 | E36: 6.28883 | F36: 0.1975337628
A38: RISOTTO
A39: TRUFFLE AND WILD MUSHROOM RISOTTO | B39: =5.5*E39 -> 51.92 | C39: =B39/1.05 -> 49.44761905 | D39: =+B39*90% -> 46.728 | E39: 9.44 | F39: =+E39*1.05/(C39*90%) -> 0.2227272727
A40: SEAFOOD RISOTTO | B40: 40 | C40: 38.0952381 | D40: 36 | E40: 6.48 | F40: 0.19845
A41: PUMPKIN RISOTTO WITH CAJUN SHRIMP | B41: =5.5*E41 -> 46.475 | C41: 44.26190476 | D41: 41.8275 | E41: 8.45 | F41: 0.2227272727
A43: KID'S MENU
A44: MAC N CHEESE | B44: 25 | C44: =B44/1.05 -> 23.80952381 | D44: =+B44*90% -> 22.5 | E44: 4.78737 | F44: =+E44*1.05/(C44*90%) -> 0.23458113
A45: LITTLE CHEF'S BOLOGNESE | B45: 19 | C45: 18.0952381 | D45: 17.1 | E45: 3.4294 | F45: 0.2211060526
A46: LITTLE CHEF'S PINK PASTA | B46: 19 | C46: 18.0952381 | D46: 17.1 | E46: 3.58642 | F46: 0.2312297105
A47: CHICKEN NUGGETS | B47: 19 | C47: 18.0952381 | D47: 17.1 | E47: 3.0082 | F47: 0.1939497368
A49: DESSERTS
A50: TIRAMISU | B50: 29 | C50: =B50/1.05 -> 27.61904762 | D50: =+B50*90% -> 26.1 | E50: 6.41 | F50: =+E50*1.05/(C50*90%) -> 0.2707672414
A51: CHOCOLATE FUDGE BROWNIE | B51: 12 | C51: 11.42857143 | D51: 10.8 | E51: 1.98 | F51: 0.202125
A52: MANGO & PASSION FRUIT PANNACOTTA | B52: =5.5*E52 -> 14.19 | C52: 13.51428571 | D52: 12.771 | E52: 2.58 | F52: 0.2227272727
A53: ROCKY ROAD | B53: 19 | C53: 18.0952381 | D53: 17.1 | E53: 3.58 | F53: 0.2308157895
A54: CHOCOLATE COOKIES | B54: 10 | C54: 9.523809524 | D54: 9 | E54: 1.42 | F54: 0.17395
A55: CHOCO ALMOND COOKIES | B55: =5.5*E55 -> 11.22 | C55: 10.68571429 | D55: 10.098 | E55: 2.04 | F55: 0.2227272727
A57: combos
A58: Beat the Heat | B58: 39 | C58: =B58/1.05 -> 37.14285714 | D58: =+B58*90% -> 35.1 | E58: =E13+2.4 -> 8.26746 | F58: =+E58*1.05/(C58*90%) -> 0.2596830385
A59: Classic Meal For 1 | B59: 59 | C59: 56.19047619 | D59: 53.1 | E59: =4.98+E5+2.4 -> 17.286 | F59: 0.3589042373
A60: Classic Meal for 2 | B60: 79 | C60: 75.23809524 | D60: 71.1 | E60: =E32+E5+E6+2.4+2.4+E32 -> 25.6134 | F60: 0.3971698101
A61: Kids Meal | B61: 39 | C61: 37.14285714 | D61: 35.1 | E61: =E45+E47+3.01 -> 9.4476 | F61: 0.2967515385
A62: Any Two Pasta @35each | B62: 70 | C62: 66.66666667 | D62: 63 | E62: =E3+E4 -> 11.27519 | F62: 0.197315825
A63: Build Your Own Pasta + Fries | B63: 60 | C63: 57.14285714 | D63: 54 | F63: 0

Sheet 120525
A2: Category Name | B2: Dish Name | C2: Dish Name | D2: Menu description (as will appear in the aggregator) | E2: Preferred selling price (including VAT) | F2: Choose Your Pasta (Mandatory Min 1, Max 1) | G2: Free Drink (Mandatory Min 1, Max 1)
A3: Promo of the month | C3: Beat the Heat | D3: Truffle Mushroom Fettuccini + OJ. | E3: 49 | F3: Truffle Mushroom Fettuccini | G3: Orange Juice
A5: Category Name | B5: Dish Name | C5: Dish Name | D5: Menu description (as will appear in the aggregator) | E5: Preferred selling price (including VAT) | F5: Choose Your 1st Pasta (Mandatory Min 1, Max 1) | G5: Choose Your 2nd Pasta (Mandatory Min 1, Max 1)
A6: Combo! | C6: Casa TreCinque | D6: Choice of any 2 pastas at 35 each. | E6: 70 | F6: Penne Pink Pasta Penne Arrabiatta Spaghetti Bolognese Lasagna Bolognese Spaghetti Puttanesca Gnocchi Pomodoro | G6: Penne Pink Pasta Penne Arrabiatta Spaghetti Bolognese Lasagna Bolognese Spaghetti Puttanesca Gnocchi Pomodoro
B7: Dish Name | C7: Dish Name | D7: Menu description (as will appear in the aggregator) | E7: Preferred selling price (including VAT) | F7: Choose your 1st Salad Min 1 Max 1 | G7: Choose your 2nd Salad Min 1 Max 1
C8: Due Insalate a Scelta | D8: Mix and match any 2 salads at 35 each. | E8: 70 | F8: Chicken Caesar Salad Chicken Penne Salad Sicilian Tuna Pasta Salad Fusilli Pasta Salad Caprese Salad | G8: Chicken Caesar Salad Chicken Penne Salad Sicilian Tuna Pasta Salad Fusilli Pasta Salad Caprese Salad
C9: Dish Name | D9: Menu description (as will appear in the aggregator) | E9: Preferred selling price (including VAT) | F9: Choose your Side Min Max 2
C10: Scegli 2 Contorni | D10: Choice of any 2 sides at 27 each. | E10: 54 | F10: Four Cheese Arancini Mushroom & Saffron Arancini Sicilian Meat Balls Chicken Strips Chicken Wings (4 pcs BBQ) Chicken Wings (4 pcs Buffalo) Sweet Potato Fries Mozzarella Sticks Truffle Fries
A13: Category Name | B13: Dish Name | C13: Dish Name | D13: Menu description (as will appear in the aggregator) | E13: Preferred selling price (including VAT) | F13: Choose Your Pasta (Mandatory Min 1, Max 1) | G13: Choose Your Side (Mandatory Min 1, Max 1) | H13: Free Drink (Mandatory Min 1, Max 1)
A14: Meals | C14: Classic Meal For 1 | D14: Choice of pasta, served with side and soft drink. | E14: 59 | F14: Truffle Mushroom Fettuccini Chicken Fettuccini Alfredo Truffle Gnocchi Chicken Penne Alfredo Linguine Frutti di Mare Rigatoni Amatriciana Penne Pink Pasta Penne Arrabiatta Spaghetti Bolognese Lasagna Bolognese Spaghetti Puttanesca Gnocchi Pomodoro | G14: Chicken Strips Chicken Wings (6 pcs BBQ) Chicken Wings (6 pcs Buffalo) Sweet Potato Fries Mozzarella Sticks Truffle Fries Sicilian Meat Balls Four Cheese Arancini Mushroom & Saffron Arancini | H14: Orange Juice+8 Coke Coke Zero Coke Light Fanta Sprite
B15: Dish Name | C15: Dish Name | D15: Menu description (as will appear in the aggregator) | E15: Preferred selling price (including VAT) | F15: Choose Your 1st Pasta (Mandatory Min 1, Max 1) | G15: Choose Your 2nd Pasta (Mandatory Min 1, Max 1) | H15: Choose Your Side (Mandatory Min 1, Max 1) | I15: Free Drink (Mandatory Min 1, Max 1) | J15: Free Drink (Mandatory Min 1, Max 1)
C16: Classic Meal for 2 | D16: Choice of 2 pastas, served with Garlic Bread, side and 2 soft drinks. | E16: 89 | F16: Truffle Mushroom Fettuccini Chicken Fettuccini Alfredo Truffle Gnocchi Chicken Penne Alfredo Linguine Frutti di Mare Rigatoni Amatriciana Penne Pink Pasta Penne Arrabiatta Spaghetti Bolognese Lasagna Bolognese Spaghetti Puttanesca Gnocchi Pomodoro | G16: Truffle Mushroom Fettuccini Chicken Fettuccini Alfredo Truffle Gnocchi Chicken Penne Alfredo Linguine Frutti di Mare Rigatoni Amatriciana Penne Pink Pasta Penne Arrabiatta Spaghetti Bolognese Lasagna Bolognese Spaghetti Puttanesca Gnocchi Pomodoro | H16: Chicken Strips Chicken Wings (6 pcs BBQ) Chicken Wings (6 pcs Buffalo) Sweet Potato Fries Mozzarella Sticks Truffle Fries Sicilian Meat Balls Four Cheese Arancini Mushroom & Saffron Arancini | I16: Orange Juice+8 Coke Coke Zero Coke Light Fanta Sprite | J16: Orange Juice+8 Coke Coke Zero Coke Light Fanta Sprite
B17: Dish Name | C17: Dish Name | D17: Menu description (as will appear in the aggregator) | E17: Preferred selling price (including VAT) | F17: Choose Your Pasta (Mandatory Min 1, Max 1) | G17: Choose Your Side (Mandatory Min 1, Max 1) | H17: Free Drink (Mandatory Min 1, Max 1)
C18: Kids Meal | D18: Chef's Little Bolognese or Chef's Little Pink Pasta, served with with chicken nuggets and OJ. | E18: 39 | F18: Little Chef's Bolognese Little Chef's Pink Pasta | G18: Chicken Nuggets | H18: Orange Juice
B19: Dish Name | C19: Dish Name | D19: Menu description (as will appear in the aggregator) | E19: Preferred selling price (including VAT) | F19: Choose Your Pasta Min 1 Max 1 | G19: Choose Your Sauce Min 1 Max 1 | H19: Choose Your Vegetable Min 1 Max 1 | I19: Choose Your Protein Min 1 Max 1 | J19: Choose Your Cheese Min 1 Max 1 | K19: Make it Spicy Min 1 Max 1 | L19: Choose Your Fries Min 1 Max 1
C20: Build Your Own Pasta + Fries | D20: Build your own pasta with a choice of base, sauce, protein, served with a complementary side of fries. | E20: 55 | F20: Spaghetti Rigatoni Fettuccini Tagliatelle Penne Potato Gnocchi | G20: Bolognese Arrabiatta Alfredo Puttanesca Pink Sauce Basil Pesto | H20: White Mushroom Zucchini Cherry Tomato Black Olives Mixed Bell Pepper Sundried Tomato Baby Spinach Basil No Vegetable | I20: Chicken Shrimp Squid Beef Bacon Meatballs | J20: Mozzarella Mozzarella Balls Parmesan Mixed Cheese No Cheese | K20: Chilli Falkes No Chilli Falkes | L20: French Fries Regular French Fries Large + 5
B21: Dish Name | C21: Dish Name | D21: Menu description (as will appear in the aggregator) | E21: Preferred selling price (including VAT) | F21: Choose Your Pinsa (Mandatory Min 1 Max 1) | G21: Choose Your Appetizer (Mandatory Min Max 1) | H21: Choose Your Drink (Mandatory Min Max 1)
B22: combo 1 (Pinsa+side + drink) | C22: Solo Pinsa Combo | D22: Any 72-hr fermented pinsa + any side + soft drink—light crust, full flavour. | E22: 49 | F22: Margherita Pepperoni Spicy Chicken | G22: Creamy Tomato Soup Sicillian meat balls Sweet Potato Fries Waffle fries | H22: Coke - 330ml Diet Coke - 330ml Sprite - 330ml Fanta - 330ml
B23: Dish Name | C23: Dish Name | D23: Menu description (as will appear in the aggregator) | E23: Preferred selling price (including VAT) | F23: Choose Your Pinsa (Mandatory Min 1 Max 1) | G23: Choose Your Pasta (Mandatory Min 1 Max 1) | H23: Choose Your Drink (Mandatory Min 1 Max 1)
B24: Combo for 2(pinza +pasta +2 drinks) | C24: Share-It-All Combo for 2 | D24: One pinsa, one pasta & two drinks—perfect for two, with our airy, digestible crust. | E24: 69 | F24: Margherita Pepperoni Spicy Chicken | G24: PENNE PINK PASTA PENNE ARRABIATTA SPAGHETTI BOLOGNESE LASAGNA BOLOGNESE | H24: Coke - 330ml Diet Coke - 330ml Sprite - 330ml Fanta - 330ml
A27: Category Name | B27: Dish Name | C27: Dish Name | D27: Menu description (as will appear in the aggregator) | E27: Preferred selling price (including VAT) | F27: Summer Deal ! 50%off min max 1
A28: Pasta | B28: Fettuccine ai Funghi e Tartufo | C28: Truffle Mushroom Fettuccini | D28: Fettuccine, with a creamy Italian black truffle paste, and sautéed mushrooms with aged Grana Padano. | E28: 56 | F28: Coke +4.5 Coke Zero +4.5 Coke Light +4.5 Fanta +4.5 Sprite +4.5
B29: Chicken Fettuccini Alfredo | C29: Chicken Fettuccini Alfredo | D29: Fettuccine, with an Alfredo base, sautéed mushrooms and grilled chicken, topped with parsley and aged Grana Padano. | E29: 51 | F29: Coke +4.5 Coke Zero +4.5 Coke Light +4.5 Fanta +4.5 Sprite +4.5
B30: Gnocchi in Salsa Bianca al Tartufo | C30: Truffle Gnocchi | D30: Gnocchi, with a truffle-laced Alfredo base, sautéed mushrooms and aged Grana Padano. | E30: 45 | F30: Coke +4.5 Coke Zero +4.5 Coke Light +4.5 Fanta +4.5 Sprite +4.5
B31: Chicken Penne Alfredo | C31: Chicken Penne Alfredo | D31: Penne, with an Alfredo base, sautéed mushrooms and grilled chicken, topped with parsley and aged Grana Padano. | E31: 47 | F31: Coke +4.5 Coke Zero +4.5 Coke Light +4.5 Fanta +4.5 Sprite +4.5
B32: Linguine ai Frutti di Mare | C32: Linguine Frutti di Mare | D32: Linguine tossed with shrimp, squid, cherry tomatoes, and Alfredo sauce – fresh, flavorful, and ready to enjoy. | E32: 49 | F32: Coke +4.5 Coke Zero +4.5 Coke Light +4.5 Fanta +4.5 Sprite +4.5
B33: Rigatoni all’Amatriciana | C33: Rigatoni Amatriciana | D33: Rigatoni, in a smoky pomodoro base, mixed in with crispy beef bacon, caramelized onion, and topped with aged Grana Padano. | E33: 46 | F33: Coke +4.5 Coke Zero +4.5 Coke Light +4.5 Fanta +4.5 Sprite +4.5
B34: Dish Name | C34: Dish Name | D34: Menu description (as will appear in the aggregator) | E34: Preferred selling price (including VAT) | F34: Summer Deal ! 50%off min max 1
B35: Penne Pink Pasta | C35: Penne Pink Pasta | D35: Penne, with a blend of Aflredo-pomodoro sauce, topped with basil and cracked pepper aged Grana Padano. | E35: 41 | F35: Coke +4.5 Coke Zero +4.5 Coke Light +4.5 Fanta +4.5 Sprite +4.5
B36: Penne all’Arrabbiata | C36: Penne Arrabiatta | D36: Penne, with a garlic-charged pomodoro base, Calabrian chili, fresh basil and aged Grana Padano. | E36: 39 | F36: Coke +4.5 Coke Zero +4.5 Coke Light +4.5 Fanta +4.5 Sprite +4.5
B37: Spaghetti alla Bolognese | C37: Spaghetti Bolognese | D37: Spaghetti, with our signature beef and tomato ragù, topped with aged Grana Padano. | E37: 49 | F37: Coke +4.5 Coke Zero +4.5 Coke Light +4.5 Fanta +4.5 Sprite +4.5
B38: Lasagne alla Bolognese | C38: Lasagna Bolognese | D38: Layers of thin pasta, with our 12-hour beef ragù and dual sauces in between, our blend of Alfredo-pomodoro sauce, topped with molten mozzarella and aged Grana Padano. | E38: 49 | F38: Coke +4.5 Coke Zero +4.5 Coke Light +4.5 Fanta +4.5 Sprite +4.5
B39: Spaghetti alla Puttanesca | C39: Spaghetti Puttanesca | D39: Spaghetti, with an anchovy-garlic pomodoro, laced with Kalamata olives, capers and cherry tomato, topped with parsley and aged Grana Padano. | E39: 41 | F39: Coke +4.5 Coke Zero +4.5 Coke Light +4.5 Fanta +4.5 Sprite +4.5
B40: Gnocchi al Pomodoro | C40: Gnocchi Pomodoro | D40: Gnocchi, with a pomodoro base, with melted buffalo mozzarella and basil-pesto drizzle. | E40: 39 | F40: Coke +4.5 Coke Zero +4.5 Coke Light +4.5 Fanta +4.5 Sprite +4.5
B41: Dish Name | C41: Dish Name | D41: Menu description (as will appear in the aggregator) | E41: Preferred selling price (including VAT) | F41: Choose Your Pasta Min 1 Max 1 | G41: Choose Your Sauce Min 1 Max 1 | H41: Choose Your Vegetable Min 1 Max 1 | I41: Choose Your Protein Min 1 Max 1 | J41: Choose Your Cheese Min 1 Max 1 | K41: Make it Spicy Min 1 Max 1
C42: Build Your Own Pasta | D42: Build your own pasta. | E42: 55 | F42: Spaghetti Rigatoni Fettuccini Tagliatelle Penne Potato Gnocchi | G42: Bolognese Arrabiatta Alfredo Puttanesca Pink Sauce Basil Pesto | H42: White Mushroom Zucchini Cherry Tomato Black Olives Mixed Bell Pepper Sundried Tomato Baby Spinach Basil No Vegetable | I42: Chicken Shrimp Squid Beef Bacon Meatballs | J42: Mozzarella Mozzarella Balls Parmesan Mixed Cheese No Cheese | K42: Chilli Falkes No Chilli Falkes
A44: Category Name | B44: Dish Name | C44: Dish Name | D44: Menu description (as will appear in the aggregator) | E44: Preferred selling price (including VAT)
A45: Pinsa | B45: Margherita | C45: Margherita | D45: A feather-light, oval pinsa base—cold-fermented for 72 hours—cradles bright tomato sauce, silky fior di latte mozzarella and garden-fresh basil leaves. A final drizzle of single-estate extra-virgin olive oil lets the simple flavors shine in pure Roman style. | E45: 35
B46: Pepperoni | C46: Pepperoni | D46: All the guilty pleasure, none of the heaviness: tangy red sauce and creamy mozzarella meet uncured Italian pepperoni that curls into crispy little cups atop our cloud-like crust. A kiss of olive oil amplifies the charred-edge savor. | E46: 35
B47: Chicken Alfredo | C47: Chicken Alfredo | D47: A velvety Alfredo sauce—built on real Grana Padano, not heavy cream—blankets the airy crust. Sautéed mushrooms and herb-marinated chicken add depth, while a sprinkle of parsley lifts the richness. Comfort food, upgraded. | E47: 35
B48: Spicy Chicken | C48: Spicy Chicken | D48: Fire it up: tomato sauce and molten mozzarella carry Nashville-style hot-rubbed chicken, pickled jalapeños and a cooling chive finish. Heat lands fast, then mellows so you can still taste the dough. | E48: 35
A51: Category Name | B51: Dish Name | C51: Dish Name | D51: Menu description (as will appear in the aggregator) | E51: Preferred selling price (including VAT)
A52: Insalata | B52: Chicken Caesar Salad | C52: Chicken Caesar Salad | D52: Romaine hearts, grilled chicken, sourdough croutons and aged Grana Padano, served with our anchovy-rich Caesar dressing. | E52: 46
B53: Tuscan Pesto Penne Salad | C53: Chicken Penne Salad | D53: Peppery arugula, al dente penne and grilled chicken tossed with cherry tomatoes, black olives, mozzarella balls, served with our basil-pesto dressing. | E53: 46
B54: Sicilian Salad | C54: Sicilian Tuna Pasta Salad | D54: Al dente fusilli tossed with citrus-marinated tuna, sweet corn, crunchy spring onions and sun-dried tomato, served with a side of lemon-oil vinaigrette. | E54: 28
B55: Fusilli Pasta Salad | C55: Fusilli Pasta Salad | D55: Fusilli tossed with sundried tomatoes, black olives, creamy feta ,crispy onion, and baby spinach, served with our zesty Greek vinaigrette. | E55: 30
B56: Insalata Caprese | C56: Caprese Salad | D56: Fresh tomatoes, served with buffalo-milk mozzarella, baby arugula leaves, topped with basil, pesto and a balsamic glaze. | E56: 44
A59: Category Name | B59: Dish Name | C59: Dish Name | D59: Menu description (as will appear in the aggregator) | E59: Preferred selling price (including VAT)
A60: Sides and Snacks | C60: Four Cheese Arancini | D60: Crunchy risotto with a fondue of mozzarella, fontina, provolone and Grana Padano, served over mixed greens with a garlicky aioli dip. | E60: 29
C61: Mushroom & Saffron Arancini | D61: Crispy arancini, made of golden saffron infused risotto and mushrooms, on a bed of rocket-tomato salad. Served with a velvety porcini reduction. | E61: 31
C62: Sicilian Meat Balls | D62: Hand-rolled beef meatballs, simmered in our bright San Marzano pomodoro, topped with freshly grated Grana Padano and basil. | E62: 29
F63: Choose your dipping sauce(Choose min-of 1 & max-of 2)
C64: Chicken Strips | D64: Crispy chicken strips, served with a side dipping sauce. | E64: 31 | F64: Mayonnaise Ketchup Mustard Truffle Mushroom Sauce Signature Sauce Spicy Mayo House Sauce
C65: Chicken Wings (4 pcs BBQ) | D65: Tender chicken wings in a smoky BBQ glaze. | E65: 27
C66: Chicken Wings (4 pcs Buffalo) | D66: Spicy chicken wings coated in a tangy buffalo sauce. | E66: 27
C67: Sweet Potato Fries | D67: Crunchy sweet potato fries. | E67: 19
C68: Mozzarella Sticks | D68: Cheesy crispy breaded mozzarella sticks. The ultimate comfort food. | E68: 26
C69: Truffle Fries | D69: Crispy fries with truffle oil. | E69: 25
C70: Homemade Garlic Bread & Mozzarella (1 pc) | D70: Homemade garlic bread topped with melted mozzarella cheese. | E70: 6
A72: Category Name | B72: Dish Name | C72: Dish Name | D72: Menu description (as will appear in the aggregator) | E72: Preferred selling price (including VAT) | F72: Add a Chunk of Bread (Optional Max 1)
A73: Soups | B73: Zuppa di Broccoli | C73: Broccoli Soup | D73: A solo-sized serving of our signature green blend—light, creamy, and full of vitamin-rich broccoli goodness. A clean, comforting reset. | E73: 25 | F73: Chunk of Bread (3.00)
B74: Crema di Funghi | C74: Creamy Mushroom Soup | D74: A rich café-sized cup of velvety mushroom medley—earthy, savory, and luxuriously smooth. | E74: 25 | F74: Chunk of Bread (3.00)
B75: Zuppa di Pomodoro | C75: Tomato Soup | D75: A bright, herby bowl of slow-roasted tomato comfort—perfect as a standalone or paired with your wrap or salad. | E75: 25 | F75: Chunk of Bread (3.00)
A76: Category Name | B76: Dish Name | C76: Dish Name | D76: Menu description (as will appear in the aggregator) | E76: Preferred selling price (including VAT)
A77: Kids Menu | C77: Mac N Cheese | D77: Creamy, cheesy macaroni in a velvety cheese sauce. | E77: 25
C78: Little Chef's Bolognese | D78: Twirl-friendly spaghetti, in a beef-tomato ragù, topped with aged Grana Padano. | E78: 19
C79: Little Chef's Pink Pasta | D79: Kid-approved penne coated in pink sauce and a splash of cream, topped with basil and aged Grana Padano. | E79: 19
C80: Chicken Nuggets | D80: Crispy, bite-sized chicken nuggets served with a choice of dipping sauce. | E80: 19
A82: Category Name | B82: Dish Name | C82: Dish Name | D82: Menu description (as will appear in the aggregator) | E82: Preferred selling price (including VAT)
A83: Desserts | C83: Mango and Passion Fruit Panna Cotta | D83: A cold Italian silky and creamy dessert serving the sweet and sour taste of the mango and the passion fruit. | E83: 20
C84: Classic Tiramisu Jar | D84: Layer of Tiramisu Mousse, Coffee Cream, with the base of Lady Finger and hazelnut dip in coffee topped with Cacao powder | E84: 29
C85: Chocolate Brownie | D85: Chocolate Brownie | E85: 10
C86: Choco Almond Cookies | D86: Savor our Vegan Chocolate Almond Cookies, made with gluten-free and buckwheat flours, vegan butter, brown sugar, almond and coconut powders, and chunks of vegan dark chocolate, perfectly combined with vanilla and a touch of salt for a delightful, guilt-free treat. | E86: 11
C87: Choco Cookie | D87: Relish our Vegan Chocolate Cookies, made with gluten-free flour, coconut oil, brown sugar, coconut milk, ground flaxseed, almond powder, and vegan chocolate chips, enhanced with vanilla for a deliciously rich and satisfying treat. | E87: 11
C88: Mango Cheesecake Jar | D88: Layer of Cheese Mousse, Topped with Mango Puree, and base of Biscuit crust. | E88: 26
C89: Classic Rocky Road | D89: Our delicious handmade rocky road is made with mini marshmallows, biscuits, and dark chocolate. Contains dairy and gluten. Served in a box of 4. | E89: 19
A91: Category Name | B91: Dish Name | C91: Dish Name | D91: Menu description (as will appear in the aggregator) | E91: Preferred selling price (including VAT)
A92: Fresh Smoothies | No Added Sugar | C92: Mango Madness | D92: Mango, Passion Fruit, Pineapple, Apple Juice | E92: 27
C93: Acai Kick | D93: Acai, Blueberry, Mango, Banana, Apple Juice | E93: 27
C94: Green Machine | D94: Broccoli, Spinach, Celery, Mango, Pineapple, Banana, Apple Juice | E94: 27
C95: Tropi Colada | D95: Coconut, Pineapple, Banana, Apple Juice | E95: 27
C96: Caribbean Chill | D96: Mango, Melon, Strawberry, Apple Juice | E96: 27
C97: Strawberry Split | D97: Strawberry, Banana, Papaya, Cherry, Apple Juice | E97: 27
A99: Category Name | B99: Dish Name | C99: Dish Name | D99: Menu description (as will appear in the aggregator) | E99: Preferred selling price (including VAT)
A100: Beverages | C100: Water 500ml | D100: Water 500ml | E100: 5
C101: Orange Juice | D101: Orange Juice | E101: 15
C102: Coke | D102: Coke | E102: 9
C103: Coke Zero | D103: Coke Zero | E103: 9
C104: Coke Light | D104: Coke Light | E104: 9
C105: Fanta | D105: Fanta | E105: 9
C106: Sprite | D106: Sprite | E106: 9
C107: Sparkling Water | D107: Sparkling Water | E107: 12

Sheet KSA
A2: Category Name | B2: Dish Name | C2: Dish Name | D2: Menu description (as will appear in the aggregator) | E2: Preferred selling price (including VAT) | F2: Choose Your Pasta (Mandatory Min 1, Max 1) | G2: Free Drink (Mandatory Min 1, Max 1)
A3: Promo of the month | C3: Beat the Heat | D3: Truffle Mushroom Fettuccini + OJ. | E3: 49 | F3: Truffle Mushroom Fettuccini | G3: Orange Juice
A5: Category Name | B5: Dish Name | C5: Dish Name | D5: Menu description (as will appear in the aggregator) | E5: Preferred selling price (including VAT) | F5: Choose Your 1st Pasta (Mandatory Min 1, Max 1) | G5: Choose Your 2nd Pasta (Mandatory Min 1, Max 1)
A6: Combo! | C6: Casa TreCinque | D6: Choice of any 2 pastas at 35 each. | E6: 70 | F6: Penne Pink Pasta Penne Arrabiatta Spaghetti Bolognese Lasagna Bolognese Spaghetti Puttanesca | G6: Penne Pink Pasta Penne Arrabiatta Spaghetti Bolognese Lasagna Bolognese Spaghetti Puttanesca
B7: Dish Name | C7: Dish Name | D7: Menu description (as will appear in the aggregator) | E7: Preferred selling price (including VAT) | F7: Choose your 1st Salad Min 1 Max 1 | G7: Choose your 2nd Salad Min 1 Max 1
C8: Due Insalate a Scelta | D8: Mix and match any 2 salads at 35 each. | E8: 70 | F8: Chicken Caesar Salad Chicken Penne Salad Sicilian Tuna Pasta Salad Fusilli Pasta Salad Caprese Salad | G8: Chicken Caesar Salad Chicken Penne Salad Sicilian Tuna Pasta Salad Fusilli Pasta Salad Caprese Salad
C9: Dish Name | D9: Menu description (as will appear in the aggregator) | E9: Preferred selling price (including VAT) | F9: Choose your Side Min Max 2
C10: Scegli 2 Contorni | D10: Choice of any 2 sides at 27 each. | E10: 54 | F10: Four Cheese Arancini Mushroom & Saffron Arancini Sicilian Meat Balls Chicken Strips Chicken Wings (4 pcs BBQ) Chicken Wings (4 pcs Buffalo) Sweet Potato Fries Mozzarella Sticks Truffle Fries
A13: Category Name | B13: Dish Name | C13: Dish Name | D13: Menu description (as will appear in the aggregator) | E13: Preferred selling price (including VAT) | F13: Choose Your Pasta (Mandatory Min 1, Max 1) | G13: Choose Your Side (Mandatory Min 1, Max 1) | H13: Free Drink (Mandatory Min 1, Max 1)
A14: Meals | C14: Classic Meal For 1 | D14: Choice of pasta, served with side and soft drink. | E14: 59 | F14: Truffle Mushroom Fettuccini Chicken Fettuccini Alfredo Chicken Penne Alfredo Linguine Frutti di Mare Rigatoni Amatriciana Penne Pink Pasta Penne Arrabiatta Spaghetti Bolognese Lasagna Bolognese Spaghetti Puttanesca | G14: Chicken Strips Chicken Wings (6 pcs BBQ) Chicken Wings (6 pcs Buffalo) Sweet Potato Fries Mozzarella Sticks Truffle Fries Sicilian Meat Balls Four Cheese Arancini Mushroom & Saffron Arancini | H14: Orange Juice+8 Coke Coke Zero Coke Light Fanta Sprite
B15: Dish Name | C15: Dish Name | D15: Menu description (as will appear in the aggregator) | E15: Preferred selling price (including VAT) | F15: Choose Your 1st Pasta (Mandatory Min 1, Max 1) | G15: Choose Your 2nd Pasta (Mandatory Min 1, Max 1) | H15: Choose Your Side (Mandatory Min 1, Max 1) | I15: Free Drink (Mandatory Min 1, Max 1) | J15: Free Drink (Mandatory Min 1, Max 1)
C16: Classic Meal for 2 | D16: Choice of 2 pastas, served with Garlic Bread, side and 2 soft drinks. | E16: 89 | F16: Truffle Mushroom Fettuccini Chicken Fettuccini Alfredo Chicken Penne Alfredo Linguine Frutti di Mare Rigatoni Amatriciana Penne Pink Pasta Penne Arrabiatta Spaghetti Bolognese Lasagna Bolognese Spaghetti Puttanesca | G16: Truffle Mushroom Fettuccini Chicken Fettuccini Alfredo Chicken Penne Alfredo Linguine Frutti di Mare Rigatoni Amatriciana Penne Pink Pasta Penne Arrabiatta Spaghetti Bolognese Lasagna Bolognese Spaghetti Puttanesca | H16: Chicken Strips Chicken Wings (6 pcs BBQ) Chicken Wings (6 pcs Buffalo) Sweet Potato Fries Mozzarella Sticks Truffle Fries Sicilian Meat Balls Four Cheese Arancini Mushroom & Saffron Arancini | I16: Orange Juice+8 Coke Coke Zero Coke Light Fanta Sprite | J16: Orange Juice+8 Coke Coke Zero Coke Light Fanta Sprite
B17: Dish Name | C17: Dish Name | D17: Menu description (as will appear in the aggregator) | E17: Preferred selling price (including VAT) | F17: Choose Your Pasta (Mandatory Min 1, Max 1) | G17: Choose Your Side (Mandatory Min 1, Max 1) | H17: Free Drink (Mandatory Min 1, Max 1)
C18: Kids Meal | D18: Chef's Little Bolognese or Chef's Little Pink Pasta, served with with chicken nuggets and OJ. | E18: 39 | F18: Little Chef's Bolognese Little Chef's Pink Pasta | G18: Chicken Nuggets | H18: Orange Juice
B19: Dish Name | C19: Dish Name | D19: Menu description (as will appear in the aggregator) | E19: Preferred selling price (including VAT) | F19: Choose Your Pasta Min 1 Max 1 | G19: Choose Your Sauce Min 1 Max 1 | H19: Choose Your Vegetable Min 1 Max 1 | I19: Choose Your Protein Min 1 Max 1 | J19: Choose Your Cheese Min 1 Max 1 | K19: Make it Spicy Min 1 Max 1 | L19: Choose Your Fries Min 1 Max 1
C20: Build Your Own Pasta + Fries | D20: Build your own pasta with a choice of base, sauce, protein, served with a complementary side of fries. | E20: 55 | F20: Spaghetti Rigatoni Fettuccini Tagliatelle Penne | G20: Bolognese Arrabiatta Alfredo Puttanesca Pink Sauce Basil Pesto | H20: White Mushroom Zucchini Cherry Tomato Black Olives Mixed Bell Pepper Sundried Tomato Baby Spinach Basil No Vegetable | I20: Chicken Shrimp Beef Bacon Meatballs | J20: Mozzarella Mozzarella Buffalo Parmesan Mixed Cheese No Cheese | K20: Chilli Falkes No Chilli Falkes | L20: French Fries Regular French Fries Large + 5
A23: Category Name | B23: Dish Name | C23: Dish Name | D23: Menu description (as will appear in the aggregator) | E23: Preferred selling price (including VAT) | F23: Summer Deal ! 50%off min max 1
A24: Pasta | B24: Fettuccine ai Funghi e Tartufo | C24: Truffle Mushroom Fettuccini | D24: Fettuccine, with a creamy Italian black truffle paste, and sautéed mushrooms with aged Grana Padano. | E24: 56 | F24: Coke +4.5 Coke Zero +4.5 Coke Light +4.5 Fanta +4.5 Sprite +4.5 | G24: 62aed check the cost if we will add or not
B25: Chicken Fettuccini Alfredo | C25: Chicken Fettuccini Alfredo | D25: Fettuccine, with an Alfredo base, sautéed mushrooms and grilled chicken, topped with parsley and aged Grana Padano. | E25: 51 | F25: Coke +4.5 Coke Zero +4.5 Coke Light +4.5 Fanta +4.5 Sprite +4.5
B26: Chicken Penne Alfredo | C26: Chicken Penne Alfredo | D26: Penne, with an Alfredo base, sautéed mushrooms and grilled chicken, topped with parsley and aged Grana Padano. | E26: 47 | F26: Coke +4.5 Coke Zero +4.5 Coke Light +4.5 Fanta +4.5 Sprite +4.5
B27: Linguine ai Frutti di Mare | C27: Linguine Frutti di Mare | D27: Linguine tossed with shrimp, cherry tomatoes, and Alfredo sauce – fresh, flavorful, and ready to enjoy. | E27: 49 | F27: Coke +4.5 Coke Zero +4.5 Coke Light +4.5 Fanta +4.5 Sprite +4.5 | G27: use only shrimp
B28: Rigatoni all’Amatriciana | C28: Rigatoni Amatriciana | D28: Rigatoni, in a smoky pomodoro base, mixed in with crispy beef bacon, caramelized onion, and topped with aged Grana Padano. | E28: 46 | F28: Coke +4.5 Coke Zero +4.5 Coke Light +4.5 Fanta +4.5 Sprite +4.5 | G28: need to go be live
B29: Dish Name | C29: Dish Name | D29: Menu description (as will appear in the aggregator) | E29: Preferred selling price (including VAT) | F29: Summer Deal ! 50%off min max 1
B30: Penne Pink Pasta | C30: Penne Pink Pasta | D30: Penne, with a blend of Aflredo-pomodoro sauce, topped with basil and cracked pepper aged Grana Padano. | E30: 41 | F30: Coke +4.5 Coke Zero +4.5 Coke Light +4.5 Fanta +4.5 Sprite +4.5 | G30: ok
B31: Penne all’Arrabbiata | C31: Penne Arrabiatta | D31: Penne, with a garlic-charged pomodoro base, Calabrian chili, fresh basil and aged Grana Padano. | E31: 39 | F31: Coke +4.5 Coke Zero +4.5 Coke Light +4.5 Fanta +4.5 Sprite +4.5 | G31: ok
B32: Spaghetti alla Bolognese | C32: Spaghetti Bolognese | D32: Spaghetti, with our signature beef and tomato ragù, topped with aged Grana Padano. | E32: 49 | F32: Coke +4.5 Coke Zero +4.5 Coke Light +4.5 Fanta +4.5 Sprite +4.5 | G32: ok
B33: Lasagne alla Bolognese | C33: Lasagna Bolognese | D33: Layers of thin pasta, with our 12-hour beef ragù and dual sauces in between, our blend of Alfredo-pomodoro sauce, topped with molten mozzarella and aged Grana Padano. | E33: 49 | F33: Coke +4.5 Coke Zero +4.5 Coke Light +4.5 Fanta +4.5 Sprite +4.5 | G33: ok
B34: Spaghetti alla Puttanesca | C34: Spaghetti Puttanesca | D34: Spaghetti, with an anchovy-garlic pomodoro, laced with Kalamata olives, capers and cherry tomato, topped with parsley and aged Grana Padano. | E34: 41 | F34: Coke +4.5 Coke Zero +4.5 Coke Light +4.5 Fanta +4.5 Sprite +4.5 | G34: ok
B35: Dish Name | C35: Dish Name | D35: Menu description (as will appear in the aggregator) | E35: Preferred selling price (including VAT) | F35: Choose Your Pasta Min 1 Max 1 | G35: Choose Your Sauce Min 1 Max 1 | H35: Choose Your Vegetable Min 1 Max 1 | I35: Choose Your Protein Min 1 Max 1 | J35: Choose Your Cheese Min 1 Max 1 | K35: Make it Spicy Min 1 Max 1
C36: Build Your Own Pasta | D36: Build your own pasta. | E36: 55 | F36: Spaghetti Rigatoni Fettuccini Tagliatelle Penne | G36: Bolognese Arrabiatta Alfredo Puttanesca Pink Sauce Basil Pesto | H36: White Mushroom Zucchini Cherry Tomato Black Olives Mixed Bell Pepper Sundried Tomato Baby Spinach Basil No Vegetable | I36: Chicken Shrimp Beef Bacon Meatballs | J36: Mozzarella Mozzarella Balls Parmesan Mixed Cheese No Cheese | K36: Chilli Falkes No Chilli Falkes
A40: Category Name | B40: Dish Name | C40: Dish Name | D40: Menu description (as will appear in the aggregator) | E40: Preferred selling price (including VAT)
A41: Insalata | B41: Chicken Caesar Salad | C41: Chicken Caesar Salad | D41: Romaine hearts, grilled chicken, sourdough croutons and aged Grana Padano, served with our anchovy-rich Caesar dressing. | E41: 46
B42: Tuscan Pesto Penne Salad | C42: Chicken Penne Salad | D42: Peppery arugula, al dente penne and grilled chicken tossed with cherry tomatoes, black olives, mozzarella balls, served with our basil-pesto dressing. | E42: 46
B43: Sicilian Salad | C43: Sicilian Tuna Pasta Salad | D43: Al dente fusilli tossed with citrus-marinated tuna, sweet corn, crunchy spring onions and sun-dried tomato, served with a side of lemon-oil vinaigrette. | E43: 28
B44: Fusilli Pasta Salad | C44: Fusilli Pasta Salad | D44: Fusilli tossed with sundried tomatoes, black olives, creamy feta ,crispy onion, and baby spinach, served with our zesty Greek vinaigrette. | E44: 30
B45: Insalata Caprese | C45: Caprese Salad | D45: Fresh tomatoes, served with buffalo-milk mozzarella, baby arugula leaves, topped with basil, pesto and a balsamic glaze. | E45: 44
A48: Category Name | B48: Dish Name | C48: Dish Name | D48: Menu description (as will appear in the aggregator) | E48: Preferred selling price (including VAT)
A49: Sides and Snacks | C49: Four Cheese Arancini | D49: Crunchy risotto with a fondue of mozzarella, fontina, provolone and Grana Padano, served over mixed greens with a garlicky aioli dip. | E49: 29
C50: Mushroom & Saffron Arancini | D50: Crispy arancini, made of golden saffron infused risotto and mushrooms, on a bed of rocket-tomato salad. Served with a velvety porcini reduction. | E50: 31
C51: Sicilian Meat Balls | D51: Hand-rolled beef meatballs, simmered in our bright San Marzano pomodoro, topped with freshly grated Grana Padano and basil. | E51: 29
F52: Choose your dipping sauce(Choose min-of 1 & max-of 2)
C53: Chicken Strips | D53: Crispy chicken strips, served with a side dipping sauce. | E53: 31 | F53: Mayonnaise Ketchup Mustard Truffle Mushroom Sauce Signature Sauce Spicy Mayo House Sauce
C54: Chicken Wings (4 pcs BBQ) | D54: Tender chicken wings in a smoky BBQ glaze. | E54: 27
C55: Chicken Wings (4 pcs Buffalo) | D55: Spicy chicken wings coated in a tangy buffalo sauce. | E55: 27
C56: Sweet Potato Fries | D56: Crunchy sweet potato fries. | E56: 19
C57: Mozzarella Sticks | D57: Cheesy crispy breaded mozzarella sticks. The ultimate comfort food. | E57: 26
C58: Truffle Fries | D58: Crispy fries with truffle oil. | E58: 25
C59: Homemade Garlic Bread & Mozzarella (1 pc) | D59: Homemade garlic bread topped with melted mozzarella cheese. | E59: 6 | F59: make same uae
A61: Category Name | B61: Dish Name | C61: Dish Name | D61: Menu description (as will appear in the aggregator) | E61: Preferred selling price (including VAT) | F61: Add a Chunk of Bread (Optional Max 1)
A62: Soups | B62: Zuppa di Broccoli | C62: Broccoli Soup | D62: A solo-sized serving of our signature green blend—light, creamy, and full of vitamin-rich broccoli goodness. A clean, comforting reset. | E62: 25 | F62: Chunk of Bread (3.00)
B63: Crema di Funghi | C63: Creamy Mushroom Soup | D63: A rich café-sized cup of velvety mushroom medley—earthy, savory, and luxuriously smooth. | E63: 25 | F63: Chunk of Bread (3.00)
B64: Zuppa di Pomodoro | C64: Tomato Soup | D64: A bright, herby bowl of slow-roasted tomato comfort—perfect as a standalone or paired with your wrap or salad. | E64: 25 | F64: Chunk of Bread (3.00)
A65: Category Name | B65: Dish Name | C65: Dish Name | D65: Menu description (as will appear in the aggregator) | E65: Preferred selling price (including VAT)
A66: Kids Menu | C66: Mac N Cheese | D66: Creamy, cheesy macaroni in a velvety cheese sauce. | E66: 25
C67: Little Chef's Bolognese | D67: Twirl-friendly spaghetti, in a beef-tomato ragù, topped with aged Grana Padano. | E67: 19
C68: Little Chef's Pink Pasta | D68: Kid-approved penne coated in pink sauce and a splash of cream, topped with basil and aged Grana Padano. | E68: 19
C69: Chicken Nuggets | D69: Crispy, bite-sized chicken nuggets served with a choice of dipping sauce. | E69: 19
A71: Category Name | B71: Dish Name | C71: Dish Name | D71: Menu description (as will appear in the aggregator) | E71: Preferred selling price (including VAT)
A72: Desserts | C72: Mango and Passion Fruit Panna Cotta | D72: A cold Italian silky and creamy dessert serving the sweet and sour taste of the mango and the passion fruit. | E72: 20 | F72: put KSA Desserts
C73: Classic Tiramisu Jar | D73: Layer of Tiramisu Mousse, Coffee Cream, with the base of Lady Finger and hazelnut dip in coffee topped with Cacao powder | E73: 29
C74: Chocolate Brownie | D74: Chocolate Brownie | E74: 10
C75: Choco Almond Cookies | D75: Savor our Vegan Chocolate Almond Cookies, made with gluten-free and buckwheat flours, vegan butter, brown sugar, almond and coconut powders, and chunks of vegan dark chocolate, perfectly combined with vanilla and a touch of salt for a delightful, guilt-free treat. | E75: 11
C76: Choco Cookie | D76: Relish our Vegan Chocolate Cookies, made with gluten-free flour, coconut oil, brown sugar, coconut milk, ground flaxseed, almond powder, and vegan chocolate chips, enhanced with vanilla for a deliciously rich and satisfying treat. | E76: 11
C77: Mango Cheesecake Jar | D77: Layer of Cheese Mousse, Topped with Mango Puree, and base of Biscuit crust. | E77: 26
C78: Classic Rocky Road | D78: Our delicious handmade rocky road is made with mini marshmallows, biscuits, and dark chocolate. Contains dairy and gluten. Served in a box of 4. | E78: 19
A80: Category Name | B80: Dish Name | C80: Dish Name | D80: Menu description (as will appear in the aggregator) | E80: Preferred selling price (including VAT)
A81: Fresh Smoothies | No Added Sugar | C81: Mango Madness | D81: Mango, Passion Fruit, Pineapple, Apple Juice | E81: 27
C82: Acai Kick | D82: Acai, Blueberry, Mango, Banana, Apple Juice | E82: 27
C83: Green Machine | D83: Broccoli, Spinach, Celery, Mango, Pineapple, Banana, Apple Juice | E83: 27
C84: Tropi Colada | D84: Coconut, Pineapple, Banana, Apple Juice | E84: 27
C85: Caribbean Chill | D85: Mango, Melon, Strawberry, Apple Juice | E85: 27
C86: Strawberry Split | D86: Strawberry, Banana, Papaya, Cherry, Apple Juice | E86: 27
A88: Category Name | B88: Dish Name | C88: Dish Name | D88: Menu description (as will appear in the aggregator) | E88: Preferred selling price (including VAT)
A89: Beverages | C89: Water 500ml | D89: Water 500ml | E89: 5
C90: Orange Juice | D90: Orange Juice | E90: 15
C91: Coke | D91: Coke | E91: 9
C92: Coke Zero | D92: Coke Zero | E92: 9
C93: Coke Light | D93: Coke Light | E93: 9
C94: Fanta | D94: Fanta | E94: 9
C95: Sprite | D95: Sprite | E95: 9
C96: Sparkling Water | D96: Sparkling Water | E96: 12

Sheet UAE Bom
B1: PASTA & CO
B2: Truffle Mushroom Fettuccini
B3: OLIVE OIL (Transferable) | C3: 15 | D3: g
B4: WHITE ONION (Transferable) | C4: 3 | D4: g
B5: GARLIC WHOLE (Transferable) | C5: 2 | D5: gr
B6: MUSHROOM MIXTURE (Transferable) | C6: 40 | D6: g
B7: ALFREDO SAUCE (Transferable) | C7: 200 | D7: g
B8: VEGETABLE STOCK (Transferable) | C8: 150 | D8: g
B9: SALT (Transferable) | C9: 3 | D9: g
B10: BLACK PEPPER POWDER (Transferable) | C10: 1 | D10: g
B11: BLACK TRUFFLE PASTE (Transferable) | C11: 15 | D11: g
B12: Z FETTUCCINI PASTA COOKED | C12: 180 | D12: g
B13: GRANA PADANO (Transferable) | C13: 5 | D13: g
B14: BUTTER (Transferable) | C14: 20 | D14: g
B15: PARSLEY (Transferable) | C15: 1 | D15: g
B16: GRANA PADANO (Transferable) | C16: 15 | D16: g
B17: WHITE BOWL & LID 1000ML SWHK | C17: 1 | D17: Kitchen Unit(s)
B19: Chicken Fettuccini Alfredo
B20: OLIVE OIL (Transferable) | C20: 10 | D20: g
B21: GARLIC WHOLE (Transferable) | C21: 3 | D21: gr
B22: Z GRILLED CHICKEN (CUBES) | C22: 65 | D22: g
B23: MUSHROOM MIXTURE (Transferable) | C23: 50 | D23: g
B24: ALFREDO SAUCE (Transferable) | C24: 200 | D24: g
B25: VEGETABLE STOCK (Transferable) | C25: 150 | D25: g
B26: SALT (Transferable) | C26: 1 | D26: g
B27: BLACK PEPPER POWDER (Transferable) | C27: 1 | D27: g
B28: Z FETTUCCINI PASTA COOKED | C28: 180 | D28: g
B29: BUTTER (Transferable) | C29: 15 | D29: g
B30: PARSLEY (Transferable) | C30: 1 | D30: g
B31: GRANA PADANO (Transferable) | C31: 20 | D31: g
B32: GRANA PADANO (Transferable) | C32: 5 | D32: g
B33: PARSLEY (Transferable) | C33: 1 | D33: g
B34: WHITE BOWL & LID 1000ML SWHK | C34: 1 | D34: Kitchen Unit(s)
B36: Chicken Penne Alfredo
B37: OLIVE OIL (Transferable) | C37: 10 | D37: g
B38: GARLIC WHOLE (Transferable) | C38: 3 | D38: gr
B39: Z GRILLED CHICKEN (CUBES) | C39: 70 | D39: g
B40: MUSHROOM MIXTURE (Transferable) | C40: 50 | D40: g
B41: ALFREDO SAUCE (Transferable) | C41: 200 | D41: g
B42: VEGETABLE STOCK (Transferable) | C42: 150 | D42: g
B43: SALT (Transferable) | C43: 1 | D43: g
B44: BLACK PEPPER POWDER (Transferable) | C44: 1 | D44: g
B45: Z PENNE PASTA | C45: 200 | D45: g
B46: BUTTER (Transferable) | C46: 15 | D46: g
B47: GRANA PADANO (Transferable) | C47: 20 | D47: g
B48: PARSLEY (Transferable) | C48: 1 | D48: g
B49: GRANA PADANO (Transferable) | C49: 5 | D49: g
B50: PARSLEY (Transferable) | C50: 2 | D50: g
B51: WHITE BOWL & LID 1000ML SWHK | C51: 1 | D51: Kitchen Unit(s)
B53: Linguine Frutti di Mare
B54: OLIVE OIL (Transferable) | C54: 15 | D54: g
B55: WHITE ONION (Transferable) | C55: 5 | D55: g
B56: GARLIC WHOLE (Transferable) | C56: 3 | D56: gr
B57: CHERRY TOMATO RED (Transferable) | C57: 30 | D57: g
B58: Z SHRIMP RAW (thawed) | C58: 50 | D58: g
B59: SQUID RING (Transferable) | C59: 30 | D59: g
B60: CHILI FLAKES (Transferable) | C60: 1 | D60: g
B61: POMODORO SAUCE (Transferable) | C61: 200 | D61: g
B62: VEGETABLE STOCK (Transferable) | C62: 150 | D62: g
B63: SALT (Transferable) | C63: 1 | D63: g
B64: BLACK PEPPER POWDER (Transferable) | C64: 1 | D64: g
B65: BUTTER (Transferable) | C65: 10 | D65: g
B66: Z LINGUINE PASTA | C66: 1 | D66: Unit
B67: GRANA PADANO (Transferable) | C67: 20 | D67: g
B68: ALFREDO SAUCE (Transferable) | C68: 20 | D68: g
B69: FRESH BASIL (Transferable) | C69: 2 | D69: g
B70: FRESH BASIL (Transferable) | C70: 2 | D70: g
B71: WHITE BOWL & LID 1000ML SWHK | C71: 1 | D71: Kitchen Unit(s)
B73: Rigatoni Amatriciana
B74: OLIVE OIL (Transferable) | C74: 15 | D74: g
B75: CRISPY BEEF BACON (Transferable) | C75: 30 | D75: g
B76: CARAMELIZED ONION (Transferable) | C76: 20 | D76: g
B77: POMODORO SAUCE (Transferable) | C77: 200 | D77: g
B78: VEGETABLE STOCK (Transferable) | C78: 150 | D78: g
B79: SALT (Transferable) | C79: 1 | D79: g
B80: BLACK PEPPER POWDER (Transferable) | C80: 1 | D80: g
B81: Z RIGATONI PASTA (Cooked) | C81: 200 | D81: g
B82: BUTTER (Transferable) | C82: 10 | D82: g
B83: GRANA PADANO (Transferable) | C83: 15 | D83: g
B84: PARSLEY (Transferable) | C84: 1 | D84: g
B85: GRANA PADANO (Transferable) | C85: 5 | D85: g
B86: CRISPY BEEF BACON (Transferable) | C86: 10 | D86: g
B87: WHITE BOWL & LID 1000ML SWHK | C87: 1 | D87: Kitchen Unit(s)
B89: Penne Pink Pasta
B90: POMODORO SAUCE (Transferable) | C90: 200 | D90: g
B91: ALFREDO SAUCE (Transferable) | C91: 150 | D91: g
B92: SALT (Transferable) | C92: 1 | D92: g
B93: BLACK PEPPER POWDER (Transferable) | C93: 1 | D93: g
B94: VEGETABLE STOCK (Transferable) | C94: 150 | D94: g
B95: Z PENNE PASTA | C95: 200 | D95: g
B96: BUTTER (Transferable) | C96: 15 | D96: g
B97: GRANA PADANO (Transferable) | C97: 20 | D97: g
B98: FRESH BASIL (Transferable) | C98: 2 | D98: g
B99: GRANA PADANO (Transferable) | C99: 5 | D99: g
B100: FRESH BASIL (Transferable) | C100: 1 | D100: g
B101: PARSLEY (Transferable) | C101: 1 | D101: g
B102: WHITE BOWL & LID 1000ML SWHK | C102: 1 | D102: Kitchen Unit(s)
B104: Penne Arrabiatta
B105: OLIVE OIL (Transferable) | C105: 10 | D105: g
B106: GARLIC WHOLE (Transferable) | C106: 3 | D106: gr
B107: CHILI FLAKES (Transferable) | C107: 1 | D107: g
B108: CHERRY TOMATO RED (Transferable) | C108: 30 | D108: g
B109: POMODORO SAUCE (Transferable) | C109: 200 | D109: g
B110: VEGETABLE STOCK (Transferable) | C110: 150 | D110: g
B111: SALT (Transferable) | C111: 2 | D111: g
B112: BLACK PEPPER POWDER (Transferable) | C112: 1 | D112: g
B113: Z PENNE PASTA | C113: 200 | D113: g
B114: BUTTER (Transferable) | C114: 10 | D114: g
B115: FRESH BASIL (Transferable) | C115: 2 | D115: g
B116: GRANA PADANO (Transferable) | C116: 5 | D116: g
B117: FRESH BASIL (Transferable) | C117: 1 | D117: g
B118: WHITE BOWL & LID 1000ML SWHK | C118: 1 | D118: Kitchen Unit(s)
B120: Spaghetti Bolognese
B121: BOLOGNESE SAUCE (Transferable) | C121: 220 | D121: g
B122: POMODORO SAUCE (Transferable) | C122: 100 | D122: g
B123: VEGETABLE STOCK (Transferable) | C123: 150 | D123: g
B124: SALT (Transferable) | C124: 1 | D124: g
B125: BLACK PEPPER POWDER (Transferable) | C125: 1 | D125: g
B126: Z SPAGHETTI PASTA (Cooked) | C126: 200 | D126: g
B127: PARSLEY (Transferable) | C127: 1 | D127: g
B128: OLIVE OIL (Transferable) | C128: 5 | D128: g
B129: BUTTER (Transferable) | C129: 10 | D129: g
B130: GRANA PADANO (Transferable) | C130: 15 | D130: g
B131: FRESH BASIL (Transferable) | C131: 2 | D131: g
B132: GRANA PADANO (Transferable) | C132: 5 | D132: g
B133: WHITE BOWL & LID 1000ML SWHK | C133: 1 | D133: Kitchen Unit(s)
B135: Lasagna Bolognese
B136: LASAGNA BOLOGNESE (Transferable) | C136: 1 | D136: Unit
B137: POMODORO SAUCE (Transferable) | C137: 30 | D137: g
B138: ALFREDO SAUCE (Transferable) | C138: 30 | D138: g
B139: VEGETABLE STOCK (Transferable) | C139: 15 | D139: g
B140: MOZZARELLA SHREDDED (Transferable) | C140: 10 | D140: g
B141: GRANA PADANO (Transferable) | C141: 5 | D141: g
B142: FRESH BASIL (Transferable) | C142: 1 | D142: g
B143: WHITE BOWL & LID SMALL 750ML | C143: 1 | D143: Kitchen Unit(s)
B145: Spaghetti Puttanesca
B146: OLIVE OIL (Transferable) | C146: 15 | D146: g
B147: GARLIC WHOLE (Transferable) | C147: 3 | D147: gr
B148: WHITE ONION (Transferable) | C148: 5 | D148: g
B149: ANCHOVIES (Transferable) | C149: 15 | D149: g
B150: KALAMATA OLIVES (Transferable) | C150: 20 | D150: g
B151: CHERRY TOMATO RED (Transferable) | C151: 30 | D151: g
B152: CAPERS (Transferable) | C152: 10 | D152: g
B153: POMODORO SAUCE (Transferable) | C153: 200 | D153: g
B154: VEGETABLE STOCK (Transferable) | C154: 200 | D154: g
B155: SALT (Transferable) | C155: 1 | D155: g
B156: BLACK PEPPER POWDER (Transferable) | C156: 1 | D156: g
B157: Z SPAGHETTI PASTA (Cooked) | C157: 200 | D157: g
B158: PARSLEY (Transferable) | C158: 1 | D158: g
B159: FRESH BASIL (Transferable) | C159: 1 | D159: g
B160: GRANA PADANO (Transferable) | C160: 15 | D160: g
B161: CAPERS (Transferable) | C161: 5 | D161: g
B162: GRANA PADANO (Transferable) | C162: 5 | D162: g
B163: WHITE BOWL & LID 1000ML SWHK | C163: 1 | D163: Kitchen Unit(s)
B165: Chicken Caesar Salad
B166: ROMAINE (Transferable) | C166: 180 | D166: g
B167: Z GRILLED CHICKEN (SLICED) | C167: 80 | D167: g
B168: GRANA PADANO (Transferable) | C168: 30 | D168: g
B169: CROUTONS (Transferable) | C169: 20 | D169: g
B170: CAESAR DRESSING (Transferable) | C170: 60 | D170: g
B171: WHITE BOWL & LID LARGE 1300ML | C171: 1 | D171: Kitchen Unit(s)
B172: SAUCE CONTAINER 2OZ | C172: 1 | D172: Unit
B174: Chicken Penne Salad
B175: ARUGULA (Transferable) | C175: 15 | D175: g
B176: Z PENNE PASTA | C176: 150 | D176: g
B177: Z GRILLED CHICKEN (SLICED) | C177: 80 | D177: g
B178: CHERRY TOMATO RED (Transferable) | C178: 40 | D178: g
B179: BLACK OLIVES (Transferable) | C179: 20 | D179: g
B180: MOZZARELLA BALLS (Transferable) | C180: 50 | D180: g
B181: PESTO SAUCE (Transferable) (SC) | C181: 40 | D181: g
B182: SAUCE CONTAINER 2OZ | C182: 1 | D182: Unit
B183: WHITE BOWL & LID SMALL 750ML | C183: 1 | D183: Kitchen Unit(s)
B185: Sicilian Tuna Pasta Salad
B186: Z FUSILLI PASTA (Cooked) | C186: 150 | D186: g
B187: TUNA MIX (Transferable) | C187: 80 | D187: g
B188: SWEET CORN (Transferable) | C188: 40 | D188: g
B189: SPRING ONIONS CUT (Transferable) | C189: 15 | D189: g
B190: SUNDRIED TOMATO (Transferable) | C190: 40 | D190: g
B191: LEMON AND OLIVE OIL (Transferable) | C191: 40 | D191: g
B192: SAUCE CONTAINER 2OZ | C192: 1 | D192: Unit
B193: WHITE BOWL & LID 1000ML SWHK | C193: 1 | D193: Kitchen Unit(s)
B195: Fusilli Pasta Salad
B196: Z FUSILLI PASTA (Cooked) | C196: 150 | D196: g
B197: BABY SPINACH (Transferable) | C197: 30 | D197: g
B198: SUNDRIED TOMATO (Transferable) | C198: 40 | D198: g
B199: CHERRY TOMATO RED (Transferable) | C199: 40 | D199: g
B200: BLACK OLIVES (Transferable) | C200: 10 | D200: g
B201: FETA (Transferable) | C201: 40 | D201: g
B202: RED ONION SLICED (Transferable) | C202: 2 | D202: g
B203: GREEK VINAIGRETTE (Transferable) | C203: 40 | D203: g
B204: SAUCE CONTAINER 2OZ | C204: 1 | D204: Unit
B205: WHITE BOWL & LID LARGE 1300ML | C205: 1 | D205: Kitchen Unit(s)
B207: Caprese Salad
B208: ARUGULA (Transferable) | C208: 15 | D208: g
B209: TOMATO (Transferable) | C209: 200 | D209: g
B210: MOZZARELLA BUFFALO (Transferable) | C210: 125 | D210: g
B211: PESTO SAUCE (Transferable) (SC) | C211: 10 | D211: g
B212: FRESH BASIL (Transferable) | C212: 3 | D212: g
B213: BALSAMIC GLAZE | C213: 10 | D213: g
B214: OLIVE OIL (Transferable) | C214: 5 | D214: g
... 57 more rows

Sheet Sheet2
B2: BYO PASTA + FRIES
B4: Choose your Pasta
B5: Spaghetti | C5: Z SPAGHETTI PASTA (Cooked) | D5: 200
B6: Rigatoni | C6: Z RIGATONI PASTA (Cooked) | D6: 200
B7: Fetuccini | C7: Z FETTUCCINI PASTA COOKED | D7: 180
B8: Tagliatelle | C8: TAGLIATELLE PASTA (Transferable) | D8: 180
B9: Penne | C9: Z PENNE PASTA | D9: 200
B11: Choose your Fries
B12: French Fries Regular | C12: Z FRENCH FRIES | D12: 150
B13: French Fries Large | C13: Z FRENCH FRIES | D13: 250
B16: Choose yoru Pasta Sauce
B17: Bolognese | C17: BOLOGNESE SAUCE (Transferable) | D17: 150
B18: Arrabbiata | C18: Z ARRABIATA SAUCE | D18: 1
B19: Alfredo | C19: ALFREDO SAUCE (Transferable) | D19: 200
B20: Puttanesca | C20: Z PUTTANESCA SAUCE | D20: 1
B21: Pink Sauce | C21: Z PINK SAUCE | D21: 1
B22: Basil Pesto | C22: PESTO SAUCE (Transferable) (SC) | D22: 150
B24: Z ARRABIATA SAUCE
B33: 1. This sauce needs to be done when you have and order
B34: 2. Please add garlic oil 2grams to this recipe
B35: DO NOT MAKE AHEAD OF TIME!!!

Sheet KSA Bom
B1: PASTA & CO
B2: Truffle Mushroom Fettuccini
B3: OLIVE OIL (Transferable) | C3: 15 | D3: g
B4: WHITE ONION (Transferable) | C4: 3 | D4: g
B5: GARLIC WHOLE (Transferable) | C5: 2 | D5: gr
B6: MUSHROOM MIXTURE (Transferable) | C6: 40 | D6: g
B7: ALFREDO SAUCE (Transferable) | C7: 200 | D7: g
B8: VEGETABLE STOCK (Transferable) | C8: 80 | D8: g
B9: SALT (Transferable) | C9: 3 | D9: g
B10: BLACK PEPPER POWDER (Transferable) | C10: 1 | D10: g
B11: BLACK TRUFFLE PASTE (Transferable) | C11: 15 | D11: g
B12: Z FETTUCCINI PASTA COOKED | C12: 180 | D12: g
B13: GRANA PADANO (Transferable) | C13: 15 | D13: g
B14: BUTTER (Transferable) | C14: 15 | D14: g
B15: PARSLEY (Transferable) | C15: 1 | D15: g
B16: GRANA PADANO (Transferable) | C16: 5 | D16: g
B17: WHITE BOWL & LID 1000ML SWHK | C17: 1 | D17: Kitchen Unit(s)
B19: Chicken Fettuccini Alfredo
B20: OLIVE OIL (Transferable) | C20: 10 | D20: g
B21: GARLIC WHOLE (Transferable) | C21: 3 | D21: gr
B22: Z GRILLED CHICKEN (CUBES) | C22: 65 | D22: g
B23: ROASTED MUSHROOM (Transferable) | C23: 30 | D23: g
B24: ALFREDO SAUCE (Transferable) | C24: 200 | D24: g
B25: VEGETABLE STOCK (Transferable) | C25: 80 | D25: g
B26: SALT (Transferable) | C26: 1 | D26: g
B27: BLACK PEPPER POWDER (Transferable) | C27: 1 | D27: g
B28: Z FETTUCCINI PASTA COOKED | C28: 180 | D28: g
B29: BUTTER (Transferable) | C29: 15 | D29: g
B30: PARSLEY (Transferable) | C30: 1 | D30: g
B31: GRANA PADANO (Transferable) | C31: 15 | D31: g
B32: GRANA PADANO (Transferable) | C32: 5 | D32: g
B33: PARSLEY (Transferable) | C33: 1 | D33: g
B34: WHITE BOWL & LID 1000ML SWHK | C34: 1 | D34: Kitchen Unit(s)
B36: Chicken Penne Alfredo
B37: OLIVE OIL (Transferable) | C37: 10 | D37: g
B38: GARLIC WHOLE (Transferable) | C38: 3 | D38: gr
B39: Z GRILLED CHICKEN (CUBES) | C39: 65 | D39: g
B40: MUSHROOM MIXTURE (Transferable) | C40: 30 | D40: g
B41: ALFREDO SAUCE (Transferable) | C41: 200 | D41: g
B42: VEGETABLE STOCK (Transferable) | C42: 80 | D42: g
B43: SALT (Transferable) | C43: 1 | D43: g
B44: BLACK PEPPER POWDER (Transferable) | C44: 1 | D44: g
B45: Z PENNE PASTA | C45: 200 | D45: g
B46: BUTTER (Transferable) | C46: 15 | D46: g
B47: GRANA PADANO (Transferable) | C47: 15 | D47: g
B48: PARSLEY (Transferable) | C48: 1 | D48: g
B49: GRANA PADANO (Transferable) | C49: 5 | D49: g
B50: PARSLEY (Transferable) | C50: 1 | D50: g
B51: WHITE BOWL & LID 1000ML SWHK | C51: 1 | D51: Kitchen Unit(s)
B53: Linguine Frutti di Mare
B54: OLIVE OIL (Transferable) | C54: 15 | D54: g
B55: WHITE ONION (Transferable) | C55: 5 | D55: g
B56: GARLIC WHOLE (Transferable) | C56: 3 | D56: gr
B57: CHERRY TOMATO RED (Transferable) | C57: 30 | D57: g
B58: Z SHRIMP RAW (thawed) | C58: 80 | D58: g
B59: SQUID RING (Transferable) | C59: 30 | D59: g
B60: CHILI FLAKES (Transferable) | C60: 1 | D60: g
B61: POMODORO SAUCE (Transferable) | C61: 200 | D61: g
B62: VEGETABLE STOCK (Transferable) | C62: 80 | D62: g
B63: SALT (Transferable) | C63: 1 | D63: g
B64: BLACK PEPPER POWDER (Transferable) | C64: 1 | D64: g
B65: BUTTER (Transferable) | C65: 10 | D65: g
B66: Z LINGUINE PASTA | C66: 1 | D66: Unit
B67: GRANA PADANO (Transferable) | C67: 15 | D67: g
B68: ALFREDO SAUCE (Transferable) | C68: 20 | D68: g
B69: FRESH BASIL (Transferable) | C69: 2 | D69: g
B70: GRANA PADANO (Transferable) | C70: 5 | D70: g
B71: FRESH BASIL (Transferable) | C71: 2 | D71: g
B72: WHITE BOWL & LID 1000ML SWHK | C72: 1 | D72: Kitchen Unit(s)
B74: Rigatoni Amatriciana
B75: OLIVE OIL (Transferable) | C75: 15 | D75: g
B76: CRISPY BEEF BACON (Transferable) | C76: 30 | D76: g
B77: CARAMELIZED ONION (Transferable) | C77: 20 | D77: g
B78: POMODORO SAUCE (Transferable) | C78: 200 | D78: g
B79: VEGETABLE STOCK (Transferable) | C79: 80 | D79: g
B80: SALT (Transferable) | C80: 1 | D80: g
B81: BLACK PEPPER POWDER (Transferable) | C81: 1 | D81: g
B82: Z RIGATONI PASTA (Cooked) | C82: 200 | D82: g
B83: BUTTER (Transferable) | C83: 10 | D83: g
B84: GRANA PADANO (Transferable) | C84: 15 | D84: g
B85: PARSLEY (Transferable) | C85: 1 | D85: g
B86: GRANA PADANO (Transferable) | C86: 5 | D86: g
B87: CRISPY BEEF BACON (Transferable) | C87: 10 | D87: g
B88: WHITE BOWL & LID 1000ML SWHK | C88: 1 | D88: Kitchen Unit(s)
B90: Penne Pink Pasta
B91: POMODORO SAUCE (Transferable) | C91: 200 | D91: g
B92: ALFREDO SAUCE (Transferable) | C92: 150 | D92: g
B93: SALT (Transferable) | C93: 1 | D93: g
B94: BLACK PEPPER POWDER (Transferable) | C94: 1 | D94: g
B95: VEGETABLE STOCK (Transferable) | C95: 80 | D95: g
B96: Z PENNE PASTA | C96: 200 | D96: g
B97: BUTTER (Transferable) | C97: 15 | D97: g
B98: GRANA PADANO (Transferable) | C98: 15 | D98: g
B99: FRESH BASIL (Transferable) | C99: 2 | D99: g
B100: GRANA PADANO (Transferable) | C100: 5 | D100: g
B101: FRESH BASIL (Transferable) | C101: 1 | D101: g
B102: PARSLEY (Transferable) | C102: 1 | D102: g
B103: WHITE BOWL & LID 1000ML SWHK | C103: 1 | D103: Kitchen Unit(s)
B105: Penne Arrabiatta
B106: OLIVE OIL (Transferable) | C106: 10 | D106: g
B107: GARLIC WHOLE (Transferable) | C107: 3 | D107: gr
B108: CHILI FLAKES (Transferable) | C108: 1 | D108: g
B109: CHERRY TOMATO RED (Transferable) | C109: 30 | D109: g
B110: POMODORO SAUCE (Transferable) | C110: 200 | D110: g
B111: VEGETABLE STOCK (Transferable) | C111: 80 | D111: g
B112: SALT (Transferable) | C112: 2 | D112: g
B113: BLACK PEPPER POWDER (Transferable) | C113: 1 | D113: g
B114: Z PENNE PASTA | C114: 200 | D114: g
B115: BUTTER (Transferable) | C115: 10 | D115: g
B116: FRESH BASIL (Transferable) | C116: 2 | D116: g
B117: GRANA PADANO (Transferable) | C117: 5 | D117: g
B118: FRESH BASIL (Transferable) | C118: 1 | D118: g
B119: WHITE BOWL & LID 1000ML SWHK | C119: 1 | D119: Kitchen Unit(s)
B121: Spaghetti Bolognese
B122: BOLOGNESE SAUCE (Transferable) | C122: 220 | D122: g
B123: POMODORO SAUCE (Transferable) | C123: 100 | D123: g
B124: VEGETABLE STOCK (Transferable) | C124: 80 | D124: g
B125: SALT (Transferable) | C125: 1 | D125: g
B126: BLACK PEPPER POWDER (Transferable) | C126: 1 | D126: g
B127: Z SPAGHETTI PASTA (Cooked) | C127: 200 | D127: g
B128: PARSLEY (Transferable) | C128: 1 | D128: g
B129: OLIVE OIL (Transferable) | C129: 5 | D129: g
B130: BUTTER (Transferable) | C130: 10 | D130: g
B131: GRANA PADANO (Transferable) | C131: 15 | D131: g
B132: FRESH BASIL (Transferable) | C132: 2 | D132: g
B133: GRANA PADANO (Transferable) | C133: 5 | D133: g
B134: WHITE BOWL & LID 1000ML SWHK | C134: 1 | D134: Kitchen Unit(s)
B136: Lasagna Bolognese
B137: LASAGNA BOLOGNESE (Transferable) | C137: 1 | D137: Unit
B138: POMODORO SAUCE (Transferable) | C138: 30 | D138: g
B139: ALFREDO SAUCE (Transferable) | C139: 30 | D139: g
B140: VEGETABLE STOCK (Transferable) | C140: 15 | D140: g
B141: MOZZARELLA SHREDDED (Transferable) | C141: 10 | D141: g
B142: GRANA PADANO (Transferable) | C142: 5 | D142: g
B143: FRESH BASIL (Transferable) | C143: 1 | D143: g
B144: WHITE BOWL & LID SMALL 750ML | C144: 1 | D144: Kitchen Unit(s)
B146: Spaghetti Puttanesca
B147: OLIVE OIL (Transferable) | C147: 15 | D147: g
B148: GARLIC WHOLE (Transferable) | C148: 3 | D148: gr
B149: WHITE ONION (Transferable) | C149: 5 | D149: g
B150: ANCHOVIES (Transferable) | C150: 15 | D150: g
B151: KALAMATA OLIVES (Transferable) | C151: 20 | D151: g
B152: CHERRY TOMATO RED (Transferable) | C152: 30 | D152: g
B153: CAPERS (Transferable) | C153: 10 | D153: g
B154: POMODORO SAUCE (Transferable) | C154: 200 | D154: g
B155: VEGETABLE STOCK (Transferable) | C155: 80 | D155: g
B156: SALT (Transferable) | C156: 1 | D156: g
B157: BLACK PEPPER POWDER (Transferable) | C157: 1 | D157: g
B158: Z SPAGHETTI PASTA (Cooked) | C158: 200 | D158: g
B159: PARSLEY (Transferable) | C159: 1 | D159: g
B160: FRESH BASIL (Transferable) | C160: 1 | D160: g
B161: GRANA PADANO (Transferable) | C161: 15 | D161: g
B162: CAPERS (Transferable) | C162: 5 | D162: g
B163: GRANA PADANO (Transferable) | C163: 5 | D163: g
B164: WHITE BOWL & LID 1000ML SWHK | C164: 1 | D164: Kitchen Unit(s)
B166: Chicken Caesar Salad
B167: ROMAINE (Transferable) | C167: 100 | D167: g
B168: Z GRILLED CHICKEN (SLICED) | C168: 80 | D168: g
B169: GRANA PADANO (Transferable) | C169: 15 | D169: g
B170: CROUTONS (Transferable) | C170: 12 | D170: g
B171: CAESAR DRESSING (Transferable) | C171: 50 | D171: g
B172: WHITE BOWL & LID LARGE 100ML | C172: 1 | D172: Kitchen Unit(s)
B173: SAUCE CONTAINER 4OZ | C173: 1 | D173: Unit
B175: Chicken Penne Salad
B176: ARUGULA (Transferable) | C176: 15 | D176: g
B177: Z PENNE PASTA | C177: 150 | D177: g
B178: Z GRILLED CHICKEN (SLICED) | C178: 80 | D178: g
B179: CHERRY TOMATO RED (Transferable) | C179: 30 | D179: g
B180: BLACK OLIVES (Transferable) | C180: 20 | D180: g
B181: MOZZARELLA BALLS (Transferable) | C181: 30 | D181: g
B182: PESTO SAUCE (Transferable) (SC) | C182: 40 | D182: g
B183: SAUCE CONTAINER 2OZ | C183: 1 | D183: Unit
B184: WHITE BOWL & LID SMALL 1000ML | C184: 1 | D184: Kitchen Unit(s)
B186: Sicilian Tuna Pasta Salad
B187: Z FUSILLI PASTA (Cooked) | C187: 180 | D187: g
B188: TUNA MIX (Transferable) | C188: 60 | D188: g
B189: SWEET CORN (Transferable) | C189: 40 | D189: g
B190: SPRING ONIONS CUT (Transferable) | C190: 15 | D190: g
B191: SUNDRIED TOMATO (Transferable) | C191: 30 | D191: g
B192: LEMON AND OLIVE OIL (Transferable) | C192: 40 | D192: g
B193: SAUCE CONTAINER 2OZ | C193: 1 | D193: Unit
B194: WHITE BOWL & LID 1000ML SWHK | C194: 1 | D194: Kitchen Unit(s)
B196: Fusilli Pasta Salad
B197: Z FUSILLI PASTA (Cooked) | C197: 150 | D197: g
B198: BABY SPINACH (Transferable) | C198: 30 | D198: g
B199: SUNDRIED TOMATO (Transferable) | C199: 30 | D199: g
B200: CHERRY TOMATO RED (Transferable) | C200: 40 | D200: g
B201: BLACK OLIVES (Transferable) | C201: 10 | D201: g
B202: FETA (Transferable) | C202: 40 | D202: g
B203: RED ONION SLICED (Transferable) | C203: 2 | D203: g
B204: GREEK VINAIGRETTE (Transferable) | C204: 40 | D204: g
B205: SAUCE CONTAINER 2OZ | C205: 1 | D205: Unit
B206: WHITE BOWL & LID LARGE 1000ML | C206: 1 | D206: Kitchen Unit(s)
B208: Caprese Salad
B210: ARUGULA (Transferable) | C210: 15 | D210: g
B211: TOMATO (Transferable) | C211: 140 | D211: g
B212: MOZZARELLA BUFFALO (Transferable) | C212: 100 | D212: g
B213: PESTO SAUCE (Transferable) (SC) | C213: 10 | D213: g
B214: FRESH BASIL (Transferable) | C214: 3 | D214: g
B215: BALSAMIC GLAZE | C215: 10 | D215: g
... 58 more rows
